[Event "SVK-ch Open 2018"]
[Site "Banska Stiavnica"]
[Date "2018.07.11"]
[Round "5"]
[White "Toma, Rudolf"]
[Black "Kantorik, Marian"]
[Result "0-1"]
[ECO "D32"]
[WhiteElo "2018"]
[BlackElo "2260"]
[Annotator "NA"]
[PlyCount "118"]
[EventDate "2018.07.07"]
[EventType "swiss"]
[EventCountry "SVK"]
[SourceTitle "playchess.com"]
[Source "ChessBase"]
[SourceQuality "1"]
[TimeControl "40/5400+30:1800+30"]

1. d4 {[%emt 0:00:00]} d5 {[%emt 0:05:28]} 2. c4 {[%emt 0:00:00]} e6 {[%emt 0:00:22]} 3. Nc3 {[%emt 0:00:01]} c5 {[%emt 0:00:06]} 4. cxd5 {[%emt 0:00:29]} exd5 {[%emt 0:00:14]} 5. Nf3 {[%emt 0:00:24]} Nc6 {[%emt 0:00:07]} 6. e3 {[%emt 0:01:15]} Nf6 {[%emt 0:00:16]} 7. Be2 {[%emt 0:00:23]} Be7 {[%emt 0:01:11]} 8. O-O {[%emt 0:00:32]} O-O {[%emt 0:00:05]} 9. b3 {[%emt 0:00:54]} Ne4 {[%emt 0:01:56]} 10. Bb2 {[%emt 0:00:22]} Bf6 {[%emt 0:01:34]} 11. Rc1 {[%emt 0:00:23]} cxd4 {[%emt 0:02:35]} 12. Nxd4 {[%emt 0:03:34]} Nxd4 {[%emt 0:01:04]} 13. exd4 {[%emt 0:00:22]} Nxc3 {[%emt 0:03:07]} 14. Bxc3 {[%emt 0:00:53]} Be6 {[%emt 0:00:30]} 15. Re1 {[%emt 0:03:21]} Rc8 {[%emt 0:01:55]} 16. Bb4 {[%emt 0:01:27]} Re8 $11 {[%emt 0:08:42]} 17. Bb5 {[%emt 0:07:34]} Bd7 {[%emt 0:02:21]} 18. Rxe8+ {[%emt 0:00:11]} Qxe8 {[%emt 0:00:15]} 19. Rxc8 {[%emt 0:08:05]} Qxc8 {[%emt 0:00:09]} 20. Bxd7 {[%emt 0:00:23]} Qxd7 {[%emt 0:00:05]} 21. g3 {[%emt 0:00:07]} Qf5 {[%emt 0:01:32]} 22. Ba3 {[%emt 0:07:32]} h5 {[%emt 0:02:22]} 23. Bb2 {[%emt 0:03:57]} h4 {[%emt 0:00:52]} 24. g4 {[%emt 0:02:33]} Qe4 {[%emt 0:01:47]} 25. h3 {[%emt 0:00:42]} g6 {[%emt 0:12:19]} 26. a4 {[%emt 0:05:40]} Bg5 {[%emt 0:05:08]} 27. Bc3 {[%emt 0:02:37]} Bf4 {[%emt 0:17:47]} 28. Qe1 Qd3 29. Qe8+ {[%emt 0:04:44]} Kg7 {[%emt 0:02:12]} 30. Bb4 {[%emt 0:00:23]} Qb1+ {[%emt 0:00:14]} 31. Kg2 {[%emt 0:00:16]} Qe4+ {[%emt 0:00:04]} 32. Qxe4 {[%emt 0:00:13]} dxe4 {[%emt 0:00:11]} 33. Kf1 {[%emt 0:00:33]} Kf6 {[%emt 0:00:43]} 34. f3 {[%emt 0:02:16]} exf3 {[%emt 0:11:11]} 35. Kf2 {[%emt 0:00:10]} Ke6 {[%emt 0:00:31]} 36. Kxf3 {[%emt 0:00:09]} Bd6 {[%emt 0:00:36]} 37. Bxd6 {[%emt 0:07:42]} Kxd6 {[%emt 0:00:21]} 38. Ke4 {[%emt 0:00:05]} f6 {[%emt 0:04:50]} 39. a5 {[%emt 0:01:57]} b6 {[%emt 0:05:05]} 40. axb6 {[%emt 0:20:42]} axb6 {[%emt 0:00:12]} 41. d5 {[%emt 0:31:32]} b5 {[%emt 0:34:58]} 42. b4 {[%emt 0:00:00]} Kd7 43. Kf4 Ke7 {[%emt 0:00:00]} 44. g5 {[%emt 0:00:00]} f5 {[%emt 0:00:00]} 45. Ke5 {[%emt 0:00:00]} Ke8 {[%emt 0:00:00]} 46. d6 {[%emt 0:00:00]} Kd7 {[%emt 0:00:00]} 47. Kd5 {[%emt 0:00:00]} f4 {[%emt 0:00:00]} 48. Ke4 {[%emt 0:00:00]} Kxd6 {[%emt 0:00:00]} 49. Kxf4 {[%emt 0:00:00]} Kd5 50. Kg4 {[%emt 0:00:00]} Kc4 {[%emt 0:00:00]} 51. Kxh4 {[%emt 0:00:00]} Kxb4 {[%emt 0:00:00]} 52. Kg3 {[%emt 0:00:00]} Kc5 {[%emt 0:00:00]} 53. h4 {[%emt 0:00:00]} Kd6 {[%emt 0:00:00]} 54. h5 {[%emt 0:04:24]} gxh5 {[%emt 0:00:00]} 55. Kh4 {[%emt 0:00:06]} b4 {[%emt 0:00:00]} 56. Kxh5 {[%emt 0:00:33]} Ke7 {[%emt 0:00:00]} 57. Kh6 {[%emt 0:00:10]} b3 {[%emt 0:00:00]} 58. g6 {[%emt 0:01:00]} b2 {[%emt 0:00:00]} 59. g7 {[%emt 0:02:06]} Kf7 {[%emt 0:00:00]} 0-1

[Event "SVK-ch Open 2018"]
[Site "Banska Stiavnica"]
[Date "2018.07.11"]
[Round "5"]
[White "Milcova, Zuzana"]
[Black "Jamrich, Gyorgy"]
[Result "1-0"]
[ECO "B22"]
[WhiteElo "2002"]
[BlackElo "2200"]
[Annotator "NA"]
[PlyCount "111"]
[EventDate "2018.07.07"]
[EventType "swiss"]
[EventCountry "SVK"]
[SourceTitle "playchess.com"]
[Source "ChessBase"]
[SourceQuality "1"]
[TimeControl "40/5400+30:1800+30"]

1. e4 {[%emt 0:00:00]} c5 {[%emt 0:00:00]} 2. c3 {[%emt 0:00:00]} d6 {[%emt 0:00:00]} 3. Nf3 {[%emt 0:00:04]} Nf6 {[%emt 0:00:23]} 4. h3 {[%emt 0:01:09]} Nc6 {[%emt 0:03:02]} 5. Bd3 {[%emt 0:00:46]} e5 {[%emt 0:04:40]} 6. Bc2 {[%emt 0:01:49]} h6 {[%emt 0:04:23]} 7. d3 {[%emt 0:02:48]} Be7 {[%emt 0:03:20]} 8. Qe2 {[%emt 0:00:41]} Be6 {[%emt 0:05:43]} 9. Nbd2 {[%emt 0:06:31]} Qc7 {[%emt 0:03:10]} 10. a4 $11 {[%emt 0:03:18]} O-O-O {[%emt 0:05:01]} 11. Nc4 {[%emt 0:28:19]} g5 {[%emt 0:03:39]} 12. Bd2 {[%emt 0:08:36]} Nd7 {[%emt 0:07:03]} 13. Ne3 {[%emt 0:06:59]} Bf6 {[%emt 0:00:19]} 14. c4 {[%emt 0:10:16]} Rdg8 {[%emt 0:01:01]} 15. Nd5 {[%emt 0:02:30]} Qd8 {[%emt 0:00:15]} 16. g4 {[%emt 0:08:42]} h5 {[%emt 0:14:11]} 17. gxh5 {[%emt 0:06:50]} g4 {[%emt 0:00:14]} 18. hxg4 {[%emt 0:00:51]} Bxg4 {[%emt 0:00:06]} 19. Bc3 {[%emt 0:05:25]} Bg5 {[%emt 0:01:18]} 20. Bd1 {[%emt 0:02:23]} Nd4 {[%emt 0:16:10]} 21. Bxd4 {[%emt 0:00:04]} exd4 {[%emt 0:00:11]} 22. Qc2 {[%emt 0:00:35]} Bxh5 {[%emt 0:01:47]} 23. Be2 {[%emt 0:02:07]} Qa5+ {[%emt 0:08:33]} 24. Nd2 {[%emt 0:00:37]} Bxe2 {[%emt 0:00:12]} 25. Kxe2 {[%emt 0:00:01]} Nb6 {[%emt 0:01:02]} 26. Nb3 {[%emt 0:00:40]} Qa6 {[%emt 0:00:06]} 27. a5 {[%emt 0:00:33]} Nxd5 {[%emt 0:00:06]} 28. cxd5 {[%emt 0:00:18]} Qb5 {[%emt 0:00:54]} 29. Rxh8 {[%emt 0:00:40]} Rxh8 {[%emt 0:00:07]} 30. Nxd4 {[%emt 0:00:19]} Qa6 {[%emt 0:04:24]} 31. b4 {[%emt 0:00:22]} b6 {[%emt 0:00:42]} 32. Nf5 {[%emt 0:00:41]} Kd7 {[%emt 0:01:23]} 33. Ra2 {[%emt 0:00:18]} Rc8 {[%emt 0:00:45]} 34. axb6 {[%emt 0:00:18]} Qxb6 {[%emt 0:00:27]} 35. Qa4+ {[%emt 0:00:41]} Kd8 {[%emt 0:00:16]} 36. b5 {[%emt 0:01:08]} Rc7 {[%emt 0:00:22]} 37. Qa6 {[%emt 0:00:19]} Bf4 {[%emt 0:02:07]} 38. Qxb6 {[%emt 0:00:28]} axb6 {[%emt 0:00:04]} 39. Ra8+ {[%emt 0:00:10]} Rc8 {[%emt 0:00:39]} 40. Rxc8+ {[%emt 0:00:19]} Kxc8 {[%emt 0:00:05]} 41. Kf3 {[%emt 0:30:33]} Be5 {[%emt 0:30:05]} 42. Nh6 {[%emt 0:00:48]} f6 {[%emt 0:00:18]} 43. Kg4 {[%emt 0:00:00]} Kd7 {[%emt 0:00:00]} 44. Kf5 {[%emt 0:00:00]} Ke7 {[%emt 0:00:00]} 45. Kg6 {[%emt 0:00:00]} Kf8 {[%emt 0:00:00]} 46. Ng4 {[%emt 0:00:00]} Bd4 {[%emt 0:00:00]} 47. Nxf6 {[%emt 0:00:00]} Bxf2 {[%emt 0:00:00]} 48. Nd7+ {[%emt 0:00:00]} Ke7 {[%emt 0:00:00]} 49. Nxb6 {[%emt 0:00:00]} Bh4 {[%emt 0:00:00]} 50. Kf5 {[%emt 0:00:00]} Bg3 {[%emt 0:00:00]} 51. Nc4 {[%emt 0:00:00]} Kd7 {[%emt 0:00:00]} 52. b6 {[%emt 0:00:00]} Bh2 {[%emt 0:00:00]} 53. Na5 {[%emt 0:00:00]} Bg3 {[%emt 0:00:00]} 54. b7 {[%emt 0:00:18]} Kc7 {[%emt 0:00:00]} 55. Ke6 {[%emt 0:00:06]} Bf4 {[%emt 0:00:00]} 56. Nc4 {[%emt 0:01:12]} 1-0

[Event "SVK-ch Open 2018"]
[Site "Banska Stiavnica"]
[Date "2018.07.11"]
[Round "5"]
[White "Gajdosik, Andrej"]
[Black "Urhegyi, Ferenc"]
[Result "1-0"]
[ECO "A40"]
[WhiteElo "1992"]
[BlackElo "1851"]
[Annotator "NA"]
[PlyCount "43"]
[EventDate "2018.07.07"]
[EventType "swiss"]
[EventCountry "SVK"]
[SourceTitle "playchess.com"]
[Source "ChessBase"]
[SourceQuality "1"]
[TimeControl "40/5400+30:1800+30"]

1. d4 {[%emt 0:00:00]} e6 {[%emt 0:00:00]} 2. c4 {[%emt 0:00:00]} b6 {[%emt 0:00:00]} 3. e4 {[%emt 0:00:37]} Bb7 {[%emt 0:00:00]} 4. Bd3 {[%emt 0:00:39]} f5 {[%emt 0:00:17]} 5. exf5 {[%emt 0:01:15]} Bxg2 {[%emt 0:00:13]} 6. Qh5+ {[%emt 0:00:25]} g6 {[%emt 0:00:04]} 7. fxg6 {[%emt 0:00:13]} Bg7 {[%emt 0:00:09]} 8. gxh7+ {[%emt 0:00:45]} Kf8 {[%emt 0:00:10]} 9. Bg5 {[%emt 0:00:44]} Nf6 {[%emt 0:00:39]} 10. Qh4 {[%emt 0:00:26]} Bxh1 {[%emt 0:01:35]} 11. Ne2 {[%emt 0:00:38]} d5 {[%emt 0:12:44]} 12. Nf4 {[%emt 0:06:39]} Kf7 {[%emt 0:06:07]} 13. Bg6+ {[%emt 0:17:33]} Ke7 {[%emt 0:00:16]} 14. Nd2 {[%emt 0:00:21]} Be4 {[%emt 0:06:22]} 15. Bxe4 {[%emt 0:16:50]} dxe4 {[%emt 0:03:06]} 16. Ng6+ {[%emt 0:00:14]} Ke8 {[%emt 0:11:20]} 17. Nxe4 {[%emt 0:09:36]} Nbd7 {[%emt 0:02:05]} 18. Nxh8 {[%emt 0:03:24]} Bxh8 {[%emt 0:00:08]} 19. O-O-O {[%emt 0:00:43]} Qe7 {[%emt 0:04:00]} 20. Rg1 {[%emt 0:04:05]} Qg7 {[%emt 0:14:14]} 21. Rg3 {[%emt 0:02:22]} Qf7 {[%emt 0:17:07]} 22. Bxf6 {[%emt 0:08:03]} 1-0

[Event "SVK-ch Open 2018"]
[Site "Banska Stiavnica"]
[Date "2018.07.11"]
[Round "5"]
[White "Pesztericz, Laszlo"]
[Black "Bango, Lukas"]
[Result "1/2-1/2"]
[ECO "B26"]
[WhiteElo "1980"]
[BlackElo "2148"]
[Annotator "NA"]
[PlyCount "121"]
[EventDate "2018.07.07"]
[EventType "swiss"]
[EventCountry "SVK"]
[SourceTitle "playchess.com"]
[Source "ChessBase"]
[SourceQuality "1"]
[TimeControl "40/5400+30:1800+30"]

1. e4 {[%emt 0:00:00]} c5 {[%emt 0:00:00]} 2. Nc3 {[%emt 0:00:00]} Nc6 {[%emt 0:00:00]} 3. g3 {[%emt 0:00:00]} g6 {[%emt 0:00:00]} 4. Bg2 {[%emt 0:00:00]} Bg7 {[%emt 0:00:00]} 5. d3 {[%emt 0:00:02]} d6 {[%emt 0:00:12]} 6. Be3 $11 {[%emt 0:00:10] LiveBook: 1948 Games} e6 {[%emt 0:00:09]} 7. Qd2 {[%emt 0:00:09]} Rb8 {[%emt 0:00:30]} 8. Nge2 {[%emt 0:00:22]} b5 {[%emt 0:00:39]} 9. O-O {[%emt 0:00:36]} Nge7 {[%emt 0:00:17]} 10. f4 {[%emt 0:00:35]} O-O {[%emt 0:00:27]} 11. Rae1 {[%emt 0:02:46]} Nd4 {[%emt 0:02:23]} 12. Nd1 {[%emt 0:01:34]} f5 {[%emt 0:01:23]} 13. c3 {[%emt 0:01:20]} Nxe2+ {[%emt 0:00:16]} 14. Qxe2 {[%emt 0:00:14]} Qc7 {[%emt 0:08:38]} 15. Nf2 {[%emt 0:09:59]} Bd7 {[%emt 0:03:00]} 16. g4 {[%emt 0:13:05]} b4 {[%emt 0:04:21]} 17. Bd2 {[%emt 0:05:59]} Kh8 {[%emt 0:12:56]} 18. Kh1 {[%emt 0:02:59]} Nc6 {[%emt 0:01:19]} 19. gxf5 {[%emt 0:04:47]} exf5 {[%emt 0:00:39]} 20. Nh3 {[%emt 0:00:09]} bxc3 {[%emt 0:03:13]} 21. Bxc3 {[%emt 0:00:39]} Nd4 {[%emt 0:01:11]} 22. Qd2 {[%emt 0:03:16]} Rbe8 {[%emt 0:08:41]} 23. Ng5 {[%emt 0:01:36]} fxe4 {[%emt 0:01:02]} 24. dxe4 {[%emt 0:01:14]} Bc6 {[%emt 0:00:32]} 25. Nf3 {[%emt 0:05:46]} Qb6 {[%emt 0:09:19]} 26. Nxd4 {[%emt 0:12:46]} cxd4 {[%emt 0:00:02]} 27. Bb4 {[%emt 0:00:22]} Rf6 {[%emt 0:00:23]} 28. a3 {[%emt 0:19:25]} Rfe6 {[%emt 0:20:16]} 29. f5 {[%emt 0:01:28]} gxf5 {[%emt 0:00:03]} 30. exf5 {[%emt 0:00:27]} Bh6 {[%emt 0:00:03]} 31. Qf2 {[%emt 0:02:32]} Rxe1 {[%emt 0:01:20]} 32. Bxe1 {[%emt 0:07:14]} Rg8 {[%emt 0:01:20]} 33. Bxc6 {[%emt 0:00:24]} Qxc6+ {[%emt 0:00:07]} 34. Qf3 {[%emt 0:00:09]} Qxf3+ {[%emt 0:05:06]} 35. Rxf3 {[%emt 0:00:03]} Be3 {[%emt 0:00:05]} 36. Bg3 {[%emt 0:00:12]} Kg7 {[%emt 0:01:57]} 37. Bxd6 {[%emt 0:00:35]} Kf7 {[%emt 0:00:14]} 38. Bg3 {[%emt 0:01:11]} Rd8 {[%emt 0:03:37]} 39. Be1 {[%emt 0:00:26]} Bc1 {[%emt 0:00:14]} 40. Rd3 {[%emt 0:03:39]} Bxb2 {[%emt 0:00:03]} 41. Rb3 {[%emt 0:30:32]} Bc1 {[%emt 0:30:21]} 42. Rb7+ {[%emt 0:00:03]} Kg8 {[%emt 0:00:22]} 43. Bb4 {[%emt 0:00:00]} Bg5 {[%emt 0:00:00]} 44. Be7 {[%emt 0:00:00]} Bxe7 {[%emt 0:00:00]} 45. Rxe7 {[%emt 0:00:00]} d3 {[%emt 0:00:00]} 46. Re1 {[%emt 0:00:00]} Kf7 {[%emt 0:00:00]} 47. Kg2 {[%emt 0:00:00]} Kf6 {[%emt 0:00:00]} 48. Kf3 {[%emt 0:00:00]} Kxf5 {[%emt 0:00:00]} 49. Rf1 {[%emt 0:00:00]} Ke5 {[%emt 0:00:00]} 50. Ke3 {[%emt 0:00:00]} d2 {[%emt 0:00:00]} 51. Rd1 {[%emt 0:00:00]} Kf5 {[%emt 0:00:00]} 52. Kf3 {[%emt 0:00:31]} Rd7 {[%emt 0:00:00]} 53. Ke2 {[%emt 0:04:02]} Ke4 {[%emt 0:00:00]} 54. Rxd2 {[%emt 0:00:24]} Rxd2+ {[%emt 0:00:00]} 55. Kxd2 {[%emt 0:00:08]} Kf3 {[%emt 0:00:00]} 56. a4 {[%emt 0:00:16]} h5 {[%emt 0:00:00]} 57. a5 {[%emt 0:00:25]} h4 {[%emt 0:00:00]} 58. a6 {[%emt 0:00:24]} h3 {[%emt 0:00:00]} 59. Kd3 {[%emt 0:00:20]} Kg2 {[%emt 0:00:00]} 60. Ke2 {[%emt 0:00:54]} Kxh2 {[%emt 0:00:00]} 61. Kf2 {[%emt 0:00:36]} 1/2-1/2

[Event "SVK-ch Open 2018"]
[Site "Banska Stiavnica"]
[Date "2018.07.11"]
[Round "5"]
[White "Istok, Vojtech"]
[Black "Antal, Jakub"]
[Result "1-0"]
[ECO "B21"]
[WhiteElo "1971"]
[BlackElo "1787"]
[Annotator "NA"]
[PlyCount "63"]
[EventDate "2018.07.07"]
[EventType "swiss"]
[EventCountry "SVK"]
[SourceTitle "playchess.com"]
[Source "ChessBase"]
[SourceQuality "1"]
[TimeControl "40/5400+30:1800+30"]

1. e4 {[%emt 0:00:00]} c5 {[%emt 0:00:00]} 2. d4 {[%emt 0:00:06]} cxd4 {[%emt 0:00:28]} 3. c3 {[%emt 0:00:04]} Nf6 {[%emt 0:01:41]} 4. e5 {[%emt 0:00:09]} Nd5 {[%emt 0:01:01]} 5. Qxd4 {[%emt 0:00:28]} e6 {[%emt 0:01:40]} 6. Bc4 {[%emt 0:02:46]} Nc6 {[%emt 0:02:05]} 7. Qe4 {[%emt 0:00:04]} f5 {[%emt 0:08:02]} 8. exf6 {[%emt 0:00:28]} Nxf6 {[%emt 0:00:22]} 9. Qe2 {[%emt 0:00:16]} d5 {[%emt 0:06:23]} 10. Bb3 {[%emt 0:05:43]} Bd6 {[%emt 0:08:45]} 11. Bg5 {[%emt 0:02:25]} O-O {[%emt 0:00:28]} 12. Nf3 {[%emt 0:00:51]} Qc7 {[%emt 0:06:23]} 13. Nbd2 {[%emt 0:06:02]} Bd7 {[%emt 0:18:53]} 14. c4 {[%emt 0:14:51]} Rae8 {[%emt 0:08:08]} 15. O-O {[%emt 0:08:28]} h6 {[%emt 0:12:37]} 16. Bxf6 {[%emt 0:08:42]} Rxf6 {[%emt 0:02:31]} 17. cxd5 {[%emt 0:00:26]} exd5 {[%emt 0:03:17]} 18. Bxd5+ {[%emt 0:00:13]} Kh8 {[%emt 0:00:18]} 19. Qc4 {[%emt 0:04:10]} Rf4 {[%emt 0:03:40]} 20. Qb3 {[%emt 0:00:23]} Ref8 {[%emt 0:07:20]} 21. Rac1 {[%emt 0:11:07]} Qc8 {[%emt 0:04:13]} 22. Rfe1 {[%emt 0:15:50]} Bh3 {[%emt 0:01:12]} 23. Be6 {[%emt 0:00:51]} Bxe6 {[%emt 0:00:49]} 24. Qxe6 {[%emt 0:00:03]} Qd8 {[%emt 0:00:43]} 25. Rc4 {[%emt 0:04:03]} Rxc4 {[%emt 0:00:58]} 26. Nxc4 {[%emt 0:00:06]} Rxf3 {[%emt 0:00:29]} 27. Nxd6 {[%emt 0:06:01]} Rf6 {[%emt 0:00:29]} 28. Nf7+ {[%emt 0:00:53]} Rxf7 {[%emt 0:00:02]} 29. Qxf7 {[%emt 0:00:08]} Ne5 {[%emt 0:00:55]} 30. Qe6 {[%emt 0:00:42]} Nd3 {[%emt 0:00:37]} 31. Rd1 {[%emt 0:01:21]} Qd4 {[%emt 0:00:28]} 32. Qc8+ {[%emt 0:01:10]} 1-0

[Event "SVK-ch Open 2018"]
[Site "Banska Stiavnica"]
[Date "2018.07.11"]
[Round "5"]
[White "Panko, Eduard"]
[Black "Tepper, Frantisek"]
[Result "1/2-1/2"]
[ECO "B02"]
[WhiteElo "1958"]
[BlackElo "2050"]
[Annotator "NA"]
[PlyCount "46"]
[EventDate "2018.07.07"]
[EventType "swiss"]
[EventCountry "SVK"]
[SourceTitle "playchess.com"]
[Source "ChessBase"]
[SourceQuality "1"]
[TimeControl "40/5400+30:1800+30"]

1. e4 {[%emt 0:00:00]} Nf6 {[%emt 0:00:00]} 2. Nc3 {[%emt 0:00:04]} d5 {[%emt 0:00:00]} 3. exd5 {[%emt 0:00:27]} Nxd5 {[%emt 0:00:00]} 4. Nxd5 {[%emt 0:00:17]} Qxd5 {[%emt 0:00:00]} 5. Qf3 {[%emt 0:00:12]} c6 {[%emt 0:03:42]} 6. Qxd5 {[%emt 0:07:16]} cxd5 {[%emt 0:00:02]} 7. d4 {[%emt 0:00:16]} Nc6 {[%emt 0:01:06]} 8. c3 {[%emt 0:01:00]} Bf5 {[%emt 0:01:15]} 9. Bf4 {[%emt 0:01:52]} f6 {[%emt 0:02:23]} 10. Bb5 {[%emt 0:02:59]} Rc8 {[%emt 0:00:19]} 11. Bg3 {[%emt 0:09:34]} e6 $11 {[%emt 0:06:12]} 12. Ne2 {[%emt 0:01:09]} a6 {[%emt 0:00:23]} 13. Ba4 {[%emt 0:00:26]} Kd7 {[%emt 0:03:56]} 14. O-O {[%emt 0:06:55]} Bd6 {[%emt 0:00:19]} 15. Bxd6 {[%emt 0:01:28]} Kxd6 {[%emt 0:00:01]} 16. Ng3 {[%emt 0:00:38]} Bg6 {[%emt 0:01:25]} 17. f4 {[%emt 0:04:50]} Ne7 {[%emt 0:01:55]} 18. Rae1 {[%emt 0:01:13]} h5 19. h4 Nf5 20. Nxf5+ Bxf5 21. Rf2 b5 22. Bc2 Bxc2 23. Rxc2 b4 1/2-1/2

[Event "SVK-ch Open 2018"]
[Site "Banska Stiavnica"]
[Date "2018.07.11"]
[Round "5"]
[White "Gzib, David"]
[Black "Kerdik, Adam"]
[Result "0-1"]
[ECO "B12"]
[WhiteElo "1939"]
[BlackElo "2091"]
[Annotator "NA"]
[PlyCount "114"]
[EventDate "2018.07.07"]
[EventType "swiss"]
[EventCountry "SVK"]
[SourceTitle "playchess.com"]
[Source "ChessBase"]
[SourceQuality "1"]
[TimeControl "40/5400+30:1800+30"]

1. e4 {[%emt 0:01:07]} c6 {[%emt 0:00:00]} 2. d4 {[%emt 0:00:51]} d5 {[%emt 0:00:00]} 3. e5 {[%emt 0:00:06]} Bf5 {[%emt 0:00:03]} 4. h4 {[%emt 0:00:06]} h5 {[%emt 0:00:40]} 5. Bd3 {[%emt 0:00:10]} Bxd3 {[%emt 0:00:27]} 6. Qxd3 {[%emt 0:00:02]} e6 {[%emt 0:00:15]} 7. Bg5 {[%emt 0:00:54]} Qb6 {[%emt 0:00:47]} 8. Nd2 {[%emt 0:00:25]} Qa6 {[%emt 0:00:35]} 9. c4 {[%emt 0:00:14]} Bb4 {[%emt 0:00:41]} 10. b3 {[%emt 0:00:13]} c5 {[%emt 0:01:09]} 11. dxc5 {[%emt 0:16:04]} Nc6 {[%emt 0:02:43]} 12. Ngf3 {[%emt 0:02:02]} Nge7 {[%emt 0:03:44]} 13. O-O {[%emt 0:03:22]} Bxc5 {[%emt 0:00:57]} 14. a3 {[%emt 0:07:33]} Ng6 {[%emt 0:05:49]} 15. Rfe1 {[%emt 0:06:00]} Qb6 {[%emt 0:01:51]} 16. Be3 {[%emt 0:13:05]} Ncxe5 {[%emt 0:09:45]} 17. Qc3 {[%emt 0:04:22]} Bxe3 {[%emt 0:05:57]} 18. Rxe3 {[%emt 0:02:59]} Ng4 {[%emt 0:03:31]} 19. c5 {[%emt 0:19:43]} Qc7 {[%emt 0:01:18]} 20. Ree1 {[%emt 0:00:49]} O-O {[%emt 0:02:49]} 21. Nf1 {[%emt 0:02:55]} Qe7 {[%emt 0:19:02]} 22. Ng3 {[%emt 0:04:31]} Qf6 {[%emt 0:04:34]} 23. Qd3 {[%emt 0:04:54]} Nf4 {[%emt 0:06:22]} 24. Qc2 {[%emt 0:02:12]} g6 {[%emt 0:06:13]} 25. Ng5 {[%emt 0:01:23]} Rfc8 {[%emt 0:04:27]} 26. b4 {[%emt 0:02:35]} a5 {[%emt 0:01:44]} 27. Rab1 {[%emt 0:00:48]} Ne5 {[%emt 0:04:51]} 28. Qc3 {[%emt 0:02:22]} Nfd3 {[%emt 0:00:41]} 29. Rxe5 {[%emt 0:01:47]} Nxe5 {[%emt 0:00:55]} 30. bxa5 {[%emt 0:00:40]} Nd7 {[%emt 0:05:20]} 31. Qc2 {[%emt 0:00:25]} Nxc5 {[%emt 0:00:50]} 32. Rb5 {[%emt 0:00:24]} Ne4 {[%emt 0:02:29]} 33. N3xe4 {[%emt 0:00:24]} Qa1+ {[%emt 0:00:09]} 34. Rb1 {[%emt 0:00:19]} Rxc2 {[%emt 0:00:08]} 35. Rxa1 {[%emt 0:00:14]} dxe4 {[%emt 0:00:06]} 36. Rb1 {[%emt 0:00:41]} Rc7 {[%emt 0:03:19]} 37. Rb5 {[%emt 0:00:11]} Rd8 {[%emt 0:01:46]} 38. Nxe4 {[%emt 0:00:42]} Kg7 {[%emt 0:00:09]} 39. g3 {[%emt 0:00:47]} Rd5 {[%emt 0:00:59]} 40. Rb3 {[%emt 0:00:54]} Rxa5 {[%emt 0:02:14]} 41. Nd6 {[%emt 0:02:17]} Rc1+ {[%emt 0:03:35]} 42. Kg2 {[%emt 0:00:31]} Rd5 {[%emt 0:01:29]} 43. Nxb7 {[%emt 0:02:03]} Rc2 {[%emt 0:01:32]} 44. a4 {[%emt 0:02:45]} Rf5 {[%emt 0:00:54]} 45. Rf3 {[%emt 0:02:17]} Rxf3 {[%emt 0:00:25]} 46. Kxf3 {[%emt 0:00:02]} Rc7 {[%emt 0:00:37]} 47. Nd6 {[%emt 0:02:02]} Ra7 {[%emt 0:00:05]} 48. Nc4 {[%emt 0:01:33]} Rxa4 {[%emt 0:00:10]} 49. Ne3 {[%emt 0:00:08]} Kf6 {[%emt 0:00:39]} 50. Ke2 {[%emt 0:00:36]} Ke5 {[%emt 0:01:29]} 51. Kf3 {[%emt 0:00:20]} Kd4 {[%emt 0:02:28]} 52. Nd1 {[%emt 0:01:58]} Ra3+ {[%emt 0:01:00]} 53. Ne3 {[%emt 0:00:57]} e5 {[%emt 0:02:07]} 54. Ke2 {[%emt 0:00:12]} Rxe3+ {[%emt 0:02:20]} 55. fxe3+ {[%emt 0:00:12]} Ke4 {[%emt 0:00:07]} 56. Kf2 {[%emt 0:00:14]} Kf5 {[%emt 0:00:56]} 57. Kf3 {[%emt 0:00:33]} e4+ {[%emt 0:00:05]} 0-1

[Event "SVK-ch Open 2018"]
[Site "Banska Stiavnica"]
[Date "2018.07.11"]
[Round "5"]
[White "Slaba, Andrea"]
[Black "Gyerpal, Adrian"]
[Result "1/2-1/2"]
[ECO "E62"]
[WhiteElo "1936"]
[BlackElo "1990"]
[Annotator "NA"]
[PlyCount "80"]
[EventDate "2018.07.07"]
[EventType "swiss"]
[EventCountry "SVK"]
[SourceTitle "playchess.com"]
[Source "ChessBase"]
[SourceQuality "1"]
[TimeControl "40/5400+30:1800+30"]

1. Nf3 {[%emt 0:00:00]} Nf6 {[%emt 0:00:00]} 2. g3 {[%emt 0:00:00]} g6 {[%emt 0:00:01]} 3. Bg2 {[%emt 0:00:23]} Bg7 {[%emt 0:00:18]} 4. O-O {[%emt 0:00:16]} O-O {[%emt 0:00:30]} 5. d4 {[%emt 0:01:07]} d6 {[%emt 0:00:56]} 6. c4 {[%emt 0:00:21]} Nc6 {[%emt 0:01:15]} 7. Nc3 {[%emt 0:03:32]} Bf5 {[%emt 0:00:45]} 8. Nh4 {[%emt 0:03:49]} Bd7 {[%emt 0:02:55]} 9. Nf3 {[%emt 0:00:42]} a6 {[%emt 0:03:20]} 10. b3 {[%emt 0:03:08]} Rb8 {[%emt 0:03:35]} 11. Bb2 {[%emt 0:01:46]} b5 {[%emt 0:03:24]} 12. cxb5 {[%emt 0:04:30]} axb5 {[%emt 0:00:15]} 13. d5 {[%emt 0:02:17]} b4 {[%emt 0:07:37]} 14. dxc6 {[%emt 0:00:55]} bxc3 {[%emt 0:00:05]} 15. Bxc3 {[%emt 0:00:28]} Bxc6 {[%emt 0:00:45]} 16. Rc1 {[%emt 0:01:49]} Bh6 {[%emt 0:09:19]} 17. e3 {[%emt 0:01:54]} Bb5 {[%emt 0:03:33]} 18. Re1 {[%emt 0:01:07]} c5 {[%emt 0:01:41]} 19. a4 {[%emt 0:00:59]} Bc6 {[%emt 0:02:54]} 20. Bxf6 {[%emt 0:01:22]} exf6 {[%emt 0:00:35]} 21. Nd2 {[%emt 0:00:13]} Bxg2 {[%emt 0:03:08]} 22. Kxg2 {[%emt 0:00:05]} Qc7 {[%emt 0:03:20]} 23. Qf3 {[%emt 0:01:38]} f5 {[%emt 0:03:34]} 24. Qd5 {[%emt 0:00:52]} Qb7 {[%emt 0:02:11]} 25. Qxb7 {[%emt 0:00:02]} Rxb7 {[%emt 0:00:02]} 26. Red1 {[%emt 0:04:47]} Rd8 {[%emt 0:04:07]} 27. Nc4 {[%emt 0:15:21]} Rxb3 {[%emt 0:09:14]} 28. Rxd6 {[%emt 0:00:24]} Rxd6 {[%emt 0:02:08]} 29. Nxd6 {[%emt 0:00:04]} Bf8 {[%emt 0:05:11]} 30. Ne8 {[%emt 0:03:56]} Rb7 {[%emt 0:07:17]} 31. Nf6+ {[%emt 0:00:28]} Kg7 {[%emt 0:00:29]} 32. Nd5 {[%emt 0:00:44]} Ra7 {[%emt 0:01:22]} 33. Rc4 {[%emt 0:00:10]} Ra5 {[%emt 0:01:41]} 34. Kf3 {[%emt 0:01:57]} Bd6 {[%emt 0:01:14]} 35. e4 {[%emt 0:03:48]} fxe4+ {[%emt 0:01:07]} 36. Kxe4 {[%emt 0:00:29]} f5+ {[%emt 0:02:07]} 37. Kd3 {[%emt 0:02:20]} Kf7 {[%emt 0:01:38]} 38. Nc3 {[%emt 0:08:07]} Ke6 {[%emt 0:02:40]} 39. f4 {[%emt 0:00:57]} Be7 {[%emt 0:04:22]} 40. Nb5 {[%emt 0:00:34]} Kd5 {[%emt 0:03:47] Ke4+} 1/2-1/2